[Event "*** Monthly 3|2 Blitz Masters"]
[Site "Chess.com"]
[Date "2014.11.25"]
[Round "6"]
[White "redchessman"]
[Black "Philofive"]
[Result "1-0"]
[WhiteElo "2278"]
[BlackElo "2211"]
[TimeControl "180+2"]
[EndTime "12:09:26 PST"]
[Termination "redchessman won by checkmate"]

1. Nf3 {[%clk 0:03:00]} 1... Nf6 {[%clk 0:02:58.8]} 2. c4 {[%clk 0:03:01.2]}
2... g6 {[%clk 0:03:00]} 3. Nc3 {[%clk 0:03:01.8]} 3... Bg7 {[%clk 0:03:01.7]}
4. g3 {[%clk 0:03:01.9]} 4... d6 {[%clk 0:03:03]} 5. d4 {[%clk 0:03:01.6]} 5...
O-O {[%clk 0:03:04.1]} 6. Bg2 {[%clk 0:03:02.8]} 6... Nc6 {[%clk 0:03:05.3]} 7.
O-O {[%clk 0:03:03.6]} 7... a6 {[%clk 0:03:06.6]} 8. b3 {[%clk 0:03:04.8]} 8...
Rb8 {[%clk 0:03:06]} 9. Nd5 {[%clk 0:03:05.9]} 9... e6 {[%clk 0:02:59]} 10.
Nxf6+ {[%clk 0:03:06.7]} 10... Qxf6 {[%clk 0:02:59.1]} 11. Bb2 {[%clk
0:03:02.5]} 11... Qd8 {[%clk 0:02:55.9]} 12. Qd2 {[%clk 0:02:58.1]} 12... Ne7
{[%clk 0:02:54.5]} 13. Rac1 {[%clk 0:02:56.1]} 13... b6 {[%clk 0:02:54.8]} 14.
e4 {[%clk 0:02:49.3]} 14... Bb7 {[%clk 0:02:49.4]} 15. d5 {[%clk 0:02:43.9]}
15... Bxb2 {[%clk 0:02:45.5]} 16. Qxb2 {[%clk 0:02:45.8]} 16... e5 {[%clk
0:02:46.7]} 17. Ne1 {[%clk 0:02:42.1]} 17... a5 {[%clk 0:02:44.5]} 18. Nd3
{[%clk 0:02:41.3]} 18... Qd7 {[%clk 0:02:31.1]} 19. a3 {[%clk 0:02:39.2]} 19...
Rbe8 {[%clk 0:02:23.3]} 20. b4 {[%clk 0:02:39.3]} 20... axb4 {[%clk 0:02:24.3]}
21. axb4 {[%clk 0:02:40]} 21... f5 {[%clk 0:02:24.7]} 22. c5 {[%clk 0:02:31]}
22... Qb5 {[%clk 0:02:23.3]} 23. cxd6 {[%clk 0:02:17.2]} 23... cxd6 {[%clk
0:02:23.3]} 24. Qb3 {[%clk 0:01:58.4]} 24... Rc8 {[%clk 0:02:19.1]} 25. f3
{[%clk 0:01:45.2]} 25... Ba6 {[%clk 0:01:44.1]} 26. Nxe5 {[%clk 0:01:28.5]}
26... fxe4 {[%clk 0:01:21.9]} 27. Nc6 {[%clk 0:01:23.5]} 27... Nxc6 {[%clk
0:01:04.9]} 28. dxc6+ {[%clk 0:01:21.2]} 28... Kg7 {[%clk 0:01:03.1]} 29. fxe4
{[%clk 0:01:18.8]} 29... Rxc6 {[%clk 0:00:59.3]} 30. Qb2+ {[%clk 0:01:17.4]}
30... Kg8 {[%clk 0:00:57.7]} 31. Rxf8+ {[%clk 0:01:16.3]} 31... Kxf8 {[%clk
0:00:58.7]} 32. Qf6+ {[%clk 0:01:12.9]} 32... Ke8 {[%clk 0:00:59.6]} 33. Rf1
{[%clk 0:01:10.5]} 33... Rc2 {[%clk 0:00:44.2]} 34. Qf8+ {[%clk 0:01:08.7]}
34... Kd7 {[%clk 0:00:45.1]} 35. Rf7+ {[%clk 0:01:08.2]} 35... Kc6 {[%clk
0:00:46.4]} 36. Qe8# {[%clk 0:01:06.9]} 1-0

[Event "*** Monthly 3|2 Blitz Masters"]
[Site "Chess.com"]
[Date "2014.11.25"]
[Round "6"]
[White "FrankieJay"]
[Black "LePlusMortel"]
[Result "0-1"]
[WhiteElo "2178"]
[BlackElo "2380"]
[TimeControl "180+2"]
[EndTime "12:10:20 PST"]
[Termination "LePlusMortel won on time"]

1. e4 {[%clk 0:03:00]} 1... c5 {[%clk 0:02:57.4]} 2. Nf3 {[%clk 0:03:01.2]} 2...
d6 {[%clk 0:02:56.2]} 3. d4 {[%clk 0:03:02.3]} 3... cxd4 {[%clk 0:02:58.1]} 4.
Nxd4 {[%clk 0:03:04.2]} 4... Nf6 {[%clk 0:02:59.2]} 5. Nc3 {[%clk 0:03:05.5]}
5... g6 {[%clk 0:03:00.5]} 6. Be3 {[%clk 0:03:06.5]} 6... Bg7 {[%clk 0:03:02.1]}
7. f3 {[%clk 0:03:07.8]} 7... O-O {[%clk 0:03:03.8]} 8. Qd2 {[%clk 0:03:08.7]}
8... Nc6 {[%clk 0:03:05.4]} 9. Bc4 {[%clk 0:03:10.2]} 9... Bd7 {[%clk
0:03:06.2]} 10. h4 {[%clk 0:03:10.7]} 10... Nxd4 {[%clk 0:02:59.5]} 11. Bxd4
{[%clk 0:03:11.5]} 11... b5 {[%clk 0:03:00.7]} 12. Bxb5 {[%clk 0:02:59.8]} 12...
Bxb5 {[%clk 0:03:00.2]} 13. Nxb5 {[%clk 0:03:01.7]} 13... Qb8 {[%clk 0:02:59.1]}
14. Nc3 {[%clk 0:02:55.9]} 14... Qxb2 {[%clk 0:02:47.3]} 15. Nd5 {[%clk
0:02:49.7]} 15... Qb7 {[%clk 0:02:26]} 16. Nxf6+ {[%clk 0:02:42.5]} 16... exf6
{[%clk 0:02:12.2]} 17. O-O {[%clk 0:02:40.9]} 17... d5 {[%clk 0:02:08.2]} 18.
Rab1 {[%clk 0:02:20]} 18... Qc6 {[%clk 0:02:06]} 19. exd5 {[%clk 0:02:11.4]}
19... Qxd5 {[%clk 0:02:04.2]} 20. c3 {[%clk 0:02:12.2]} 20... Rfd8 {[%clk
0:01:55]} 21. Qf2 {[%clk 0:02:06.9]} 21... a5 {[%clk 0:01:53.3]} 22. a4 {[%clk
0:01:56.3]} 22... Qc4 {[%clk 0:01:48]} 23. Ra1 {[%clk 0:01:40.8]} 23... f5
{[%clk 0:01:38.7]} 24. Rfd1 {[%clk 0:01:31.6]} 24... Rac8 {[%clk 0:01:20.8]} 25.
Qe3 {[%clk 0:00:47.5]} 25... Rd5 {[%clk 0:00:37]} 26. Bxg7 {[%clk 0:00:16.7]}
26... Kxg7 {[%clk 0:00:37.8]} 27. Rxd5 {[%clk 0:00:14.1]} 27... Qxd5 {[%clk
0:00:39.7]} 28. Rb1 {[%clk 0:00:12.3]} 28... Qc4 {[%clk 0:00:28.3]} 29. Qe5+
{[%clk 0:00:08.5]} 29... Kh6 {[%clk 0:00:26.7]} 0-1

[Event "*** Monthly 3|2 Blitz Masters"]
[Site "Chess.com"]
[Date "2014.11.25"]
[Round "6"]
[White "MoreChessJulia"]
[Black "josiwales"]
[Result "1-0"]
[WhiteElo "1893"]
[BlackElo "1805"]
[TimeControl "180+2"]
[EndTime "12:10:27 PST"]
[Termination "MoreChessJulia won by resignation"]

1. d4 {[%clk 0:02:54]} 1... Nf6 {[%clk 0:02:56.2]} 2. c4 {[%clk 0:02:54.2]} 2...
g6 {[%clk 0:02:56.2]} 3. Nf3 {[%clk 0:02:54.4]} 3... Bg7 {[%clk 0:02:56.9]} 4.
h3 {[%clk 0:02:46.6]} 4... O-O {[%clk 0:02:57.5]} 5. Bf4 {[%clk 0:02:43.7]} 5...
d6 {[%clk 0:02:57.8]} 6. Nc3 {[%clk 0:02:43.4]} 6... Nbd7 {[%clk 0:02:55.1]} 7.
e3 {[%clk 0:02:42.1]} 7... Re8 {[%clk 0:02:44.4]} 8. Qc2 {[%clk 0:02:41.9]} 8...
e5 {[%clk 0:02:43.9]} 9. dxe5 {[%clk 0:02:41.9]} 9... dxe5 {[%clk 0:02:44.6]}
10. Bh2 {[%clk 0:02:40.8]} 10... c6 {[%clk 0:02:45.4]} 11. O-O-O {[%clk
0:02:40.4]} 11... Qc7 {[%clk 0:02:46.6]} 12. Be2 {[%clk 0:02:32.6]} 12... Nc5
{[%clk 0:02:33.8]} 13. g4 {[%clk 0:02:27.7]} 13... Nfd7 {[%clk 0:02:27]} 14. b4
{[%clk 0:02:14.5]} 14... Ne6 {[%clk 0:02:23.2]} 15. c5 {[%clk 0:02:14.1]} 15...
a5 {[%clk 0:02:21.6]} 16. a3 {[%clk 0:02:13.6]} 16... axb4 {[%clk 0:02:22.3]}
17. axb4 {[%clk 0:02:13.7]} 17... b6 {[%clk 0:02:23.1]} 18. cxb6 {[%clk
0:02:05.7]} 18... Qxb6 {[%clk 0:02:21.9]} 19. Qb2 {[%clk 0:01:41.6]} 19... e4
{[%clk 0:01:56.6]} 20. Nd2 {[%clk 0:01:31.7]} 20... Nf6 {[%clk 0:01:30.4]} 21.
Nc4 {[%clk 0:01:17.5]} 21... Qa6 {[%clk 0:01:02]} 22. Nd6 {[%clk 0:01:13.8]}
22... Qa1+ {[%clk 0:01:02.5]} 23. Qxa1 {[%clk 0:01:13.7]} 23... Rxa1+ {[%clk
0:01:03.6]} 24. Kb2 {[%clk 0:01:13.5]} 24... Rxd1 {[%clk 0:01:03.9]} 25. Rxd1
{[%clk 0:01:13]} 25... Rd8 {[%clk 0:00:59.2]} 26. Nxc8 {[%clk 0:01:11.9]} 26...
Rxc8 {[%clk 0:00:59.6]} 27. Ba6 {[%clk 0:01:07.6]} 27... Re8 {[%clk 0:00:42.4]}
28. Kb3 {[%clk 0:01:02.5]} 28... Ng5 {[%clk 0:00:34.9]} 29. h4 {[%clk
0:00:51.3]} 29... Nh3 {[%clk 0:00:34.5]} 30. g5 {[%clk 0:00:45.3]} 30... Ng4
{[%clk 0:00:29.6]} 31. Bg3 {[%clk 0:00:44.7]} 31... Nhxf2 {[%clk 0:00:18.3]} 32.
Rd7 {[%clk 0:00:43.9]} 32... Nxe3 {[%clk 0:00:14.3]} 33. Bxf2 {[%clk 0:00:41.1]}
33... Bxc3 {[%clk 0:00:13.3]} 34. Bxe3 {[%clk 0:00:39.8]} 34... Bg7 {[%clk
0:00:14.1]} 35. Bc4 {[%clk 0:00:39.3]} 35... Rf8 {[%clk 0:00:14.7]} 36. Bc5
{[%clk 0:00:39.6]} 1-0

[Event "*** Monthly 3|2 Blitz Masters"]
[Site "Chess.com"]
[Date "2014.11.25"]
[Round "6"]
[White "jlandaw"]
[Black "WanderingPuppet"]
[Result "1-0"]
[WhiteElo "2279"]
[BlackElo "2023"]
[TimeControl "180+2"]
[EndTime "12:10:51 PST"]
[Termination "jlandaw won on time"]

1. e4 {[%clk 0:03:00]} 1... c5 {[%clk 0:02:58.3]} 2. Nc3 {[%clk 0:03:00.2]} 2...
d6 {[%clk 0:02:59.5]} 3. g3 {[%clk 0:03:01.6]} 3... g6 {[%clk 0:03:01]} 4. Bg2
{[%clk 0:03:02.5]} 4... Bg7 {[%clk 0:03:02.7]} 5. d3 {[%clk 0:03:03.9]} 5... Nc6
{[%clk 0:03:04.3]} 6. f4 {[%clk 0:03:05]} 6... Nf6 {[%clk 0:03:05.8]} 7. Nf3
{[%clk 0:03:06]} 7... O-O {[%clk 0:03:07.4]} 8. O-O {[%clk 0:03:06]} 8... Rb8
{[%clk 0:03:09]} 9. h3 {[%clk 0:03:06.3]} 9... b5 {[%clk 0:03:08.4]} 10. a3
{[%clk 0:03:06.7]} 10... a5 {[%clk 0:03:09]} 11. Be3 {[%clk 0:03:01.8]} 11... b4
{[%clk 0:02:57.5]} 12. axb4 {[%clk 0:03:02]} 12... axb4 {[%clk 0:02:59.4]} 13.
Ne2 {[%clk 0:03:03]} 13... Bb7 {[%clk 0:02:48.6]} 14. g4 {[%clk 0:02:58.7]}
14... Ne8 {[%clk 0:02:38.2]} 15. d4 {[%clk 0:02:47.3]} 15... cxd4 {[%clk
0:02:30.4]} 16. Nfxd4 {[%clk 0:02:47.2]} 16... Nxd4 {[%clk 0:02:23.2]} 17. Bxd4
{[%clk 0:02:36.3]} 17... Nf6 {[%clk 0:02:21.9]} 18. Qd3 {[%clk 0:02:30.9]} 18...
d5 {[%clk 0:01:35.8]} 19. e5 {[%clk 0:02:08]} 19... Ne4 {[%clk 0:01:36.3]} 20.
f5 {[%clk 0:01:42]} 20... Bc6 {[%clk 0:01:34.3]} 21. Qe3 {[%clk 0:01:29]} 21...
Bb5 {[%clk 0:00:56.6]} 22. Rad1 {[%clk 0:01:18.2]} 22... Bxe2 {[%clk 0:00:50.2]}
23. Qxe2 {[%clk 0:01:16]} 23... Ng3 {[%clk 0:00:51.1]} 24. Qf3 {[%clk
0:00:45.3]} 24... Nxf1 {[%clk 0:00:51.3]} 25. f6 {[%clk 0:00:46.8]} 25... Bh6
{[%clk 0:00:32.8]} 26. Rxf1 {[%clk 0:00:46.8]} 26... Bg5 {[%clk 0:00:25.7]} 27.
Qg3 {[%clk 0:00:25.9]} 27... exf6 {[%clk 0:00:20.8]} 28. h4 {[%clk 0:00:09.5]}
28... Bd2 {[%clk 0:00:13.4]} 29. exf6 {[%clk 0:00:10.3]} 29... Rc8 {[%clk
0:00:11.4]} 30. Qd3 {[%clk 0:00:10.6]} 30... Qa5 {[%clk 0:00:02.7]} 31. Qxd2
{[%clk 0:00:10.1]} 1-0

[Event "*** Monthly 3|2 Blitz Masters"]
[Site "Chess.com"]
[Date "2014.11.25"]
[Round "6"]
[White "rhungaski"]
[Black "IMRosen"]
[Result "1-0"]
[WhiteElo "2424"]
[BlackElo "1986"]
[TimeControl "180+2"]
[EndTime "12:10:52 PST"]
[Termination "rhungaski won by resignation"]

1. e4 {[%clk 0:03:00]} 1... c5 {[%clk 0:02:54.6]} 2. Nf3 {[%clk 0:03:01.1]} 2...
e6 {[%clk 0:02:54.5]} 3. d4 {[%clk 0:03:02.3]} 3... cxd4 {[%clk 0:02:54.7]} 4.
Nxd4 {[%clk 0:03:04.2]} 4... Nc6 {[%clk 0:02:56.3]} 5. Nc3 {[%clk 0:02:56.1]}
5... Qc7 {[%clk 0:02:55.1]} 6. Be2 {[%clk 0:02:56.4]} 6... a6 {[%clk 0:02:54.1]}
7. O-O {[%clk 0:02:56.6]} 7... Nf6 {[%clk 0:02:54.2]} 8. Be3 {[%clk 0:02:57.5]}
8... Bb4 {[%clk 0:02:53.4]} 9. Na4 {[%clk 0:02:57.5]} 9... O-O {[%clk
0:02:53.1]} 10. c4 {[%clk 0:02:49.9]} 10... Be7 {[%clk 0:02:44.4]} 11. Nxc6
{[%clk 0:02:44.4]} 11... bxc6 {[%clk 0:02:42.9]} 12. c5 {[%clk 0:02:36.4]} 12...
Nxe4 {[%clk 0:02:36.7]} 13. Qd4 {[%clk 0:02:26.5]} 13... f5 {[%clk 0:02:25.3]}
14. f3 {[%clk 0:02:22.6]} 14... Bf6 {[%clk 0:02:06.3]} 15. Qc4 {[%clk
0:02:21.6]} 15... Ng5 {[%clk 0:02:02.3]} 16. Bf4 {[%clk 0:02:08.4]} 16... Qa5
{[%clk 0:01:43]} 17. Nb6 {[%clk 0:02:06.1]} 17... Ra7 {[%clk 0:01:32.4]} 18. b4
{[%clk 0:01:44.3]} 18... Qb5 {[%clk 0:01:11]} 19. Rad1 {[%clk 0:01:37.7]} 19...
d5 {[%clk 0:01:04.1]} 20. Qb3 {[%clk 0:00:56.5]} 20... Qxe2 {[%clk 0:00:59.2]}
21. Rfe1 {[%clk 0:00:57.5]} 21... Qb2 {[%clk 0:00:50.1]} 22. Qxb2 {[%clk
0:00:57.1]} 22... Bxb2 {[%clk 0:00:50.7]} 23. Bxg5 {[%clk 0:00:58.3]} 23... Kf7
{[%clk 0:00:43.3]} 24. Re2 {[%clk 0:00:48.9]} 24... Ba1 {[%clk 0:00:41]} 25.
Rxa1 {[%clk 0:00:49.2]} 25... a5 {[%clk 0:00:31]} 26. a4 {[%clk 0:00:45.3]}
26... axb4 {[%clk 0:00:31.9]} 27. Rb1 {[%clk 0:00:44.5]} 27... Ba6 {[%clk
0:00:27.6]} 28. Ree1 {[%clk 0:00:39.7]} 28... h6 {[%clk 0:00:23.4]} 29. Bf4
{[%clk 0:00:40.1]} 29... Bd3 {[%clk 0:00:09]} 30. Rxb4 {[%clk 0:00:38.4]} 30...
Ra5 {[%clk 0:00:08.8]} 31. Nd7 {[%clk 0:00:31.5]} 31... Rc8 {[%clk 0:00:07.3]}
32. Ne5+ {[%clk 0:00:32.1]} 32... Kf6 {[%clk 0:00:08.6]} 33. Nxd3 {[%clk
0:00:33.1]} 33... g6 {[%clk 0:00:10.5]} 34. Be5+ {[%clk 0:00:34]} 34... Ke7
{[%clk 0:00:10.5]} 35. Rb7+ {[%clk 0:00:31.6]} 35... Kd8 {[%clk 0:00:11.1]} 36.
Bf6+ {[%clk 0:00:27.8]} 36... Ke8 {[%clk 0:00:11.9]} 37. Rxe6+ {[%clk
0:00:27.6]} 37... Kf8 {[%clk 0:00:13.4]} 38. Ne5 {[%clk 0:00:26.1]} 1-0

[Event "*** Monthly 3|2 Blitz Masters"]
[Site "Chess.com"]
[Date "2014.11.25"]
[Round "6"]
[White "Baggio95"]
[Black "David_Klein"]
[Result "0-1"]
[WhiteElo "2365"]
[BlackElo "2376"]
[TimeControl "180+2"]
[EndTime "12:11:06 PST"]
[Termination "David_Klein won by resignation"]

1. d4 {[%clk 0:02:53.9]} 1... Nf6 {[%clk 0:02:59]} 2. Nc3 {[%clk 0:02:54.4]}
2... d5 {[%clk 0:02:59.6]} 3. Bf4 {[%clk 0:02:55.6]} 3... Bf5 {[%clk 0:02:59.7]}
4. f3 {[%clk 0:02:56]} 4... e6 {[%clk 0:02:57.3]} 5. g4 {[%clk 0:02:55.6]} 5...
Bg6 {[%clk 0:02:58.5]} 6. h4 {[%clk 0:02:56.8]} 6... h6 {[%clk 0:02:59.3]} 7. e3
{[%clk 0:02:56.3]} 7... a6 {[%clk 0:02:59.4]} 8. Bd3 {[%clk 0:02:53.6]} 8...
Bxd3 {[%clk 0:03:00.5]} 9. Qxd3 {[%clk 0:02:54.9]} 9... c5 {[%clk 0:03:01.8]}
10. dxc5 {[%clk 0:02:52.1]} 10... Bxc5 {[%clk 0:03:00.8]} 11. Nge2 {[%clk
0:02:50.5]} 11... Nc6 {[%clk 0:03:00.7]} 12. O-O-O {[%clk 0:02:41.4]} 12... Qa5
{[%clk 0:03:00.5]} 13. Kb1 {[%clk 0:02:36.8]} 13... Rc8 {[%clk 0:02:43.1]} 14.
g5 {[%clk 0:02:34.5]} 14... Nh5 {[%clk 0:02:42.5]} 15. g6 {[%clk 0:02:24.4]}
15... f6 {[%clk 0:02:41]} 16. Bh2 {[%clk 0:02:21.5]} 16... O-O {[%clk
0:02:34.2]} 17. Nd4 {[%clk 0:02:08.5]} 17... Bxd4 {[%clk 0:02:29.1]} 18. exd4
{[%clk 0:02:09.6]} 18... Nb4 {[%clk 0:02:30.2]} 19. Qe3 {[%clk 0:02:06.6]} 19...
Rfe8 {[%clk 0:02:09.9]} 20. a3 {[%clk 0:02:06.4]} 20... Nc6 {[%clk 0:02:09.2]}
21. Rhe1 {[%clk 0:02:06.1]} 21... b5 {[%clk 0:02:09.3]} 22. Nxd5 {[%clk
0:02:01]} 22... b4 {[%clk 0:02:08.5]} 23. Nxb4 {[%clk 0:01:48.4]} 23... Nxb4
{[%clk 0:02:09]} 24. axb4 {[%clk 0:01:49.6]} 24... Qxb4 {[%clk 0:02:09.9]} 25.
d5 {[%clk 0:01:46.9]} 25... Qxh4 {[%clk 0:02:06.9]} 26. d6 {[%clk 0:01:29.5]}
26... Qxh2 {[%clk 0:02:06.6]} 27. Rd2 {[%clk 0:01:30.5]} 27... Qf4 {[%clk
0:01:58.5]} 28. d7 {[%clk 0:01:26.6]} 28... Qxe3 {[%clk 0:01:58]} 29. Rxe3
{[%clk 0:01:26.3]} 29... Nf4 {[%clk 0:01:58.9]} 30. Re4 {[%clk 0:01:16]} 30...
e5 {[%clk 0:01:58.4]} 31. Rc4 {[%clk 0:01:08.4]} 31... Rcd8 {[%clk 0:01:55.2]}
32. dxe8=Q+ {[%clk 0:01:08.9]} 32... Rxe8 {[%clk 0:01:57.1]} 33. Rd7 {[%clk
0:01:08.6]} 33... h5 {[%clk 0:01:44.9]} 34. Rcc7 {[%clk 0:00:52.8]} 34... Ne6
{[%clk 0:01:45.2]} 35. Ra7 {[%clk 0:00:53.5]} 35... h4 {[%clk 0:01:44.5]} 36. c4
{[%clk 0:00:48.4]} 36... h3 {[%clk 0:01:44.1]} 37. Rd1 {[%clk 0:00:48.3]} 37...
Nf4 {[%clk 0:01:36.3]} 38. c5 {[%clk 0:00:43.9]} 38... Nxg6 {[%clk 0:01:33]} 39.
c6 {[%clk 0:00:44.4]} 39... Rc8 {[%clk 0:01:31.2]} 40. c7 {[%clk 0:00:45.1]}
40... Kh7 {[%clk 0:01:32.1]} 41. Rd8 {[%clk 0:00:29.2]} 41... h2 {[%clk
0:01:21.2]} 42. Rxc8 {[%clk 0:00:27.2]} 42... h1=Q+ {[%clk 0:01:21.2]} 43. Ka2
{[%clk 0:00:28.9]} 43... Qc1 {[%clk 0:01:17.5]} 44. Re8 {[%clk 0:00:15.8]} 44...
Qc4+ {[%clk 0:01:14.9]} 45. Kb1 {[%clk 0:00:17]} 45... Qf1+ {[%clk 0:01:07.9]}
46. Ka2 {[%clk 0:00:17.8]} 46... Qc4+ {[%clk 0:01:08.5]} 47. Kb1 {[%clk
0:00:18.7]} 47... Qd3+ {[%clk 0:01:09.3]} 48. Ka2 {[%clk 0:00:17.6]} 48... Qd5+
{[%clk 0:01:10]} 49. Kb1 {[%clk 0:00:18.8]} 49... Qd1+ {[%clk 0:01:11.1]} 0-1

[Event "*** Monthly 3|2 Blitz Masters"]
[Site "Chess.com"]
[Date "2014.11.25"]
[Round "6"]
[White "Zhani-Z"]
[Black "vovkcoach"]
[Result "1-0"]
[WhiteElo "1914"]
[BlackElo "2466"]
[TimeControl "180+2"]
[EndTime "12:11:49 PST"]
[Termination "Zhani-Z won by resignation"]

1. e4 {[%clk 0:02:50.6]} 1... c6 {[%clk 0:02:54.8]} 2. d4 {[%clk 0:02:50]} 2...
d5 {[%clk 0:02:56.7]} 3. exd5 {[%clk 0:02:51.2]} 3... cxd5 {[%clk 0:02:57.3]} 4.
Bd3 {[%clk 0:02:52.8]} 4... Nc6 {[%clk 0:02:56.6]} 5. c3 {[%clk 0:02:53.8]} 5...
Nf6 {[%clk 0:02:51.7]} 6. Bf4 {[%clk 0:02:54.1]} 6... Bg4 {[%clk 0:02:51.7]} 7.
Qb3 {[%clk 0:02:54.7]} 7... Qd7 {[%clk 0:02:50.9]} 8. Nd2 {[%clk 0:02:54.6]}
8... e6 {[%clk 0:02:50.9]} 9. Ngf3 {[%clk 0:02:55.3]} 9... Bxf3 {[%clk
0:02:52.5]} 10. Nxf3 {[%clk 0:02:56.3]} 10... Bd6 {[%clk 0:02:54.4]} 11. Bxd6
{[%clk 0:02:49.1]} 11... Qxd6 {[%clk 0:02:56.3]} 12. O-O {[%clk 0:02:50.5]}
12... O-O {[%clk 0:02:56]} 13. Rfe1 {[%clk 0:02:51.2]} 13... Rab8 {[%clk
0:02:56.2]} 14. Ne5 {[%clk 0:02:38.7]} 14... Nd7 {[%clk 0:02:55.8]} 15. f4
{[%clk 0:02:37.7]} 15... Ndxe5 {[%clk 0:02:55.1]} 16. fxe5 {[%clk 0:02:38.1]}
16... Qc7 {[%clk 0:02:55.5]} 17. Re3 {[%clk 0:02:24.6]} 17... g6 {[%clk
0:02:54.3]} 18. Rf1 {[%clk 0:02:24.1]} 18... Kg7 {[%clk 0:02:51.3]} 19. Qd1
{[%clk 0:02:23]} 19... Ne7 {[%clk 0:02:44]} 20. Qd2 {[%clk 0:02:16]} 20... Ng8
{[%clk 0:02:43.1]} 21. h4 {[%clk 0:02:02.8]} 21... Rbe8 {[%clk 0:02:37]} 22. h5
{[%clk 0:02:02.1]} 22... f5 {[%clk 0:02:37.3]} 23. exf6+ {[%clk 0:02:02]} 23...
Rxf6 {[%clk 0:02:37.9]} 24. Rxf6 {[%clk 0:01:58.2]} 24... Nxf6 {[%clk
0:02:39.8]} 25. hxg6 {[%clk 0:01:58.9]} 25... hxg6 {[%clk 0:02:14.8]} 26. Rh3
{[%clk 0:01:57]} 26... Rg8 {[%clk 0:02:15.6]} 27. Qg5 {[%clk 0:01:52.3]} 27...
Kf7 {[%clk 0:02:11.8]} 28. Rh6 {[%clk 0:01:39]} 28... Qe7 {[%clk 0:02:09.1]} 29.
Rxg6 {[%clk 0:01:38.7]} 29... Rxg6 {[%clk 0:02:08]} 30. Qxg6+ {[%clk 0:01:26.9]}
30... Kf8 {[%clk 0:02:09.9]} 31. Kf2 {[%clk 0:01:25.8]} 31... e5 {[%clk
0:02:07.5]} 32. dxe5 {[%clk 0:01:19.8]} 32... Qxe5 {[%clk 0:02:08]} 33. Qf5
{[%clk 0:01:19.9]} 33... Qd6 {[%clk 0:02:07]} 34. Qc8+ {[%clk 0:01:03.1]} 34...
Kg7 {[%clk 0:02:02]} 35. Qxb7+ {[%clk 0:01:03.2]} 35... Kh6 {[%clk 0:02:03.9]}
36. Qf7 {[%clk 0:00:49.5]} 36... Qf4+ {[%clk 0:01:41.3]} 37. Ke2 {[%clk
0:00:48.1]} 37... Qg4+ {[%clk 0:01:41.9]} 38. Ke1 {[%clk 0:00:46]} 38... Qg3+
{[%clk 0:01:41.9]} 39. Kd2 {[%clk 0:00:44.8]} 39... Qxg2+ {[%clk 0:01:35.6]} 40.
Kc1 {[%clk 0:00:45]} 40... Ne4 {[%clk 0:01:26.9]} 41. Bxe4 {[%clk 0:00:43.1]}
41... dxe4 {[%clk 0:01:26.6]} 42. Qxa7 {[%clk 0:00:19.6]} 42... Qf1+ {[%clk
0:01:26.3]} 43. Kd2 {[%clk 0:00:18.5]} 43... Qd3+ {[%clk 0:01:28.2]} 44. Kc1
{[%clk 0:00:19.7]} 44... e3 {[%clk 0:01:26.8]} 45. Qd4 {[%clk 0:00:19.2]} 45...
Qf1+ {[%clk 0:01:26.7]} 46. Kc2 {[%clk 0:00:19.8]} 46... e2 {[%clk 0:01:28.6]}
47. Qh4+ {[%clk 0:00:19.3]} 47... Kg6 {[%clk 0:01:28.2]} 48. Qg4+ {[%clk
0:00:20.1]} 48... Kf6 {[%clk 0:01:29.3]} 49. Qd4+ {[%clk 0:00:19.5]} 49... Kf5
{[%clk 0:01:27.5]} 50. Qd5+ {[%clk 0:00:14.3]} 50... Kg4 {[%clk 0:01:25.5]} 51.
Qe4+ {[%clk 0:00:12.3]} 51... Kg3 {[%clk 0:01:25]} 52. Qe3+ {[%clk 0:00:12.5]}
52... Qf3 {[%clk 0:01:25.3]} 53. Qg1+ {[%clk 0:00:12.6]} 53... Kh3 {[%clk
0:01:21.4]} 54. Kd2 {[%clk 0:00:11.9]} 54... Qe4 {[%clk 0:00:58.5]} 55. Qf2
{[%clk 0:00:11.1]} 55... Qc2+ {[%clk 0:01:00.4]} 56. Kxc2 {[%clk 0:00:10.8]} 1-0

[Event "*** Monthly 3|2 Blitz Masters"]
[Site "Chess.com"]
[Date "2014.11.25"]
[Round "6"]
[White "GMHess"]
[Black "Yaacovn"]
[Result "0-1"]
[WhiteElo "2461"]
[BlackElo "2610"]
[TimeControl "180+2"]
[EndTime "12:12:06 PST"]
[Termination "Yaacovn won by checkmate"]

1. b3 {[%clk 0:03:02]} 1... d5 {[%clk 0:02:32.6]} 2. Bb2 {[%clk 0:02:59.6]} 2...
c6 {[%clk 0:02:34.5]} 3. e3 {[%clk 0:02:58.7]} 3... Nf6 {[%clk 0:02:35.7]} 4.
Nf3 {[%clk 0:02:56.9]} 4... g6 {[%clk 0:02:36.7]} 5. c4 {[%clk 0:02:57.5]} 5...
Bg7 {[%clk 0:02:37.7]} 6. Be2 {[%clk 0:02:47.2]} 6... O-O {[%clk 0:02:38.3]} 7.
O-O {[%clk 0:02:48.1]} 7... Bg4 {[%clk 0:02:39]} 8. d4 {[%clk 0:02:48.6]} 8...
Nbd7 {[%clk 0:02:38.4]} 9. Nc3 {[%clk 0:02:45.6]} 9... e6 {[%clk 0:02:39.2]} 10.
h3 {[%clk 0:02:38.5]} 10... Bxf3 {[%clk 0:02:38.6]} 11. Bxf3 {[%clk 0:02:39.3]}
11... Re8 {[%clk 0:02:38.6]} 12. Rc1 {[%clk 0:02:35.9]} 12... a6 {[%clk
0:02:37.9]} 13. a4 {[%clk 0:02:16.7]} 13... a5 {[%clk 0:02:37]} 14. Ba3 {[%clk
0:02:09.3]} 14... Bf8 {[%clk 0:02:37.2]} 15. Bxf8 {[%clk 0:02:06]} 15... Rxf8
{[%clk 0:02:39.1]} 16. e4 {[%clk 0:02:04.1]} 16... dxe4 {[%clk 0:02:32.9]} 17.
Bxe4 {[%clk 0:01:57.3]} 17... Qe7 {[%clk 0:02:33]} 18. Re1 {[%clk 0:01:47.2]}
18... Qb4 {[%clk 0:02:33.3]} 19. Bb1 {[%clk 0:01:36.3]} 19... Rad8 {[%clk
0:02:32.7]} 20. Re3 {[%clk 0:01:36.4]} 20... Kg7 {[%clk 0:02:32.4]} 21. Na2
{[%clk 0:01:30.6]} 21... Qd6 {[%clk 0:02:30]} 22. Qe1 {[%clk 0:01:26.5]} 22...
Qxd4 {[%clk 0:02:24.3]} 23. Qxa5 {[%clk 0:01:19.7]} 23... Nc5 {[%clk 0:02:25.1]}
24. Qc3 {[%clk 0:01:04.2]} 24... Qxc3 {[%clk 0:02:21.6]} 25. Rexc3 {[%clk
0:01:02.1]} 25... Rd2 {[%clk 0:02:20]} 26. Nb4 {[%clk 0:00:38.6]} 26... Rfd8
{[%clk 0:02:16.7]} 27. Bc2 {[%clk 0:00:32.1]} 27... h5 {[%clk 0:02:02.2]} 28. a5
{[%clk 0:00:30.3]} 28... g5 {[%clk 0:01:53.3]} 29. Re3 {[%clk 0:00:21.9]} 29...
g4 {[%clk 0:01:32.8]} 30. Ra1 {[%clk 0:00:17.2]} 30... R8d4 {[%clk 0:01:18.2]}
31. a6 {[%clk 0:00:10]} 31... Nxa6 {[%clk 0:01:14.9]} 32. Nxa6 {[%clk
0:00:11.1]} 32... Rxc2 {[%clk 0:01:16.1]} 33. Nc5 {[%clk 0:00:12]} 33... Rdd2
{[%clk 0:01:16.8]} 34. Rf1 {[%clk 0:00:12.5]} 34... b6 {[%clk 0:01:13.7]} 35.
Na4 {[%clk 0:00:12.8]} 35... b5 {[%clk 0:01:14.2]} 36. cxb5 {[%clk 0:00:13.1]}
36... cxb5 {[%clk 0:01:16.1]} 37. Nc3 {[%clk 0:00:13.7]} 37... b4 {[%clk
0:01:14.5]} 38. Ne4 {[%clk 0:00:14.2]} 38... Re2 {[%clk 0:01:05.5]} 39. Nxf6
{[%clk 0:00:14.3]} 39... Kxf6 {[%clk 0:01:07]} 40. hxg4 {[%clk 0:00:15.1]} 40...
hxg4 {[%clk 0:01:06.6]} 41. Rg3 {[%clk 0:00:16.1]} 41... Kg5 {[%clk 0:00:42.8]}
42. Rd3 {[%clk 0:00:08.2]} 42... Rc3 {[%clk 0:00:35.1]} 43. Rxc3 {[%clk
0:00:07.6]} 43... bxc3 {[%clk 0:00:37]} 44. Rc1 {[%clk 0:00:08.4]} 44... g3
{[%clk 0:00:30.7]} 45. Rxc3 {[%clk 0:00:07.5]} 45... Re1# {[%clk 0:00:30.9]} 0-1